bitfinex-derivatives/quotes_SOLF0:USTF0_20251222
["timestamp","ask_amount","ask_price","bid_price","bid_amount"]
[1766373518634,52.86264785,125.58,125.52,0.0611239]
[1766373518939,52.86264785,125.58,125.52,3.4211239]
[1766373518940,47.08,125.58,125.52,3.4211239]
[1766373519935,0.05986795,125.56,125.52,3.4211239]
[1766373529348,7.1679,125.61,125.54,3.36]
[1766373529646,3.43,125.6,125.54,3.36]
[1766373530149,3.43,125.59,125.51,13.36]
[1766373530347,3.43,125.59,125.51,3.36]
[1766373530647,0.05993615,125.56,125.54,0.06024799]
[1766373533554,3.43,125.59,125.54,0.06024799]
[1766373533754,3.43,125.61,125.54,3.42024799]
[1766373533950,3.43,125.61,125.54,3.36]
[1766373534549,3.43,125.61,125.56,0.05509137]
[1766373534745,0.05582916,125.59,125.56,0.05509137]
[1766373537847,0.05582916,125.59,125.56,3.41509137]
[1766373538150,0.05582916,125.59,125.56,10.58529137]
[1766373540969,0.05582916,125.59,125.56,3.41509137]
[1766373546057,0.05582916,125.59,125.56,0.05509137]
[1766373546757,3.32582916,125.59,125.53,7.1716]
[1766373546947,3.27,125.58,125.52,3.49]
[1766373547859,0.05550084,125.56,125.54,0.05060574]
[1766373548952,1.55706322,125.56,125.54,0.00060574]
[1766373550658,0.05550084,125.56,125.54,0.00060574]
[1766373550859,3.27,125.59,125.54,3.49060574]
[1766373550860,4.77156238,125.59,125.54,3.49060574]
[1766373551862,0.05476082,125.58,125.54,3.49060574]
[1766373552758,0.00476082,125.58,125.54,3.49060574]
[1766373553561,0.00476082,125.58,125.54,10.66160574]
[1766373553863,0.00476082,125.58,125.55,3.49]
[1766373554158,0.00476082,125.58,125.55,10.6608]
[1766373554355,0.00476082,125.58,125.56,3.49]
[1766373554563,3.27,125.64,125.57,3.49]
[1766373555552,3.27,125.64,125.56,111.5349]
[1766373555553,0.05735831,125.62,125.59,0.05112022]
[1766373556157,0.05735831,125.62,125.55,123.04616238]
[1766373556158,3.32735831,125.62,125.55,3.49]
[1766373557165,3.32735831,125.62,125.57,0.05180827]
[1766373557762,4.77156238,125.61,125.57,0.05180827]
[1766373561064,4.77156238,125.61,125.43,19.80314468]
[1766373561065,3.27,125.58,125.51,10.88561859]
[1766373561263,1.50156238,125.59,125.52,3.49]
[1766373561465,1.50156238,125.59,125.53,3.49]
[1766373561763,3.27,125.6,125.53,3.49]
[1766373562166,0.05164844,125.58,125.55,0.0590794]
[1766373564467,3.32164844,125.58,125.55,0.0590794]
[1766373567168,0.05164844,125.58,125.55,0.0590794]
[1766373571473,0.05164844,125.58,125.55,7.2298794]
[1766373571973,0.00164844,125.58,125.55,10.5298794]
[1766373572171,0.00164844,125.58,125.56,10.47]
[1766373572368,0.00164844,125.58,125.57,3.3]
[1766373574275,0.00164844,125.58,125.56,7.17]
[1766373583381,0.00164844,125.58,125.55,47.0990794]
[1766373584685,0.00164844,125.58,125.55,54.2699794]
[1766373585181,0.00164844,125.58,125.57,3.21]
[1766373590788,0.00164844,125.58,125.56,7.17]
[1766373599689,0.00164844,125.58,125.55,50.3090794]
[1766373600690,0.00164844,125.58,125.55,57.4798794]
[1766373601696,0.00164844,125.58,125.57,3.21]
[1766373601998,3.27,125.65,125.59,3.21]
[1766373602187,3.27,125.65,125.59,50.25]
[1766373602996,0.05308683,125.63,125.61,0.05111055]
[1766373603394,0.00308683,125.63,125.61,7.21841055]
[1766373603604,4.77156238,125.68,125.61,10.42841055]
[1766373604496,0.05678234,125.66,125.61,10.42841055]
[1766373607217,3.46678234,125.66,125.61,10.42841055]
[1766373607501,3.41,125.65,125.61,0.05111055]
[1766373609207,3.41,125.65,125.59,47.04]
[1766373609503,3.41,125.64,125.59,47.04]
[1766373609701,3.41,125.64,125.57,10.5793]
[1766373610401,0.05976372,125.62,125.59,0.05355497]
[1766373611390,0.05976372,125.62,125.59,3.46355497]
[1766373611597,3.41,125.66,125.59,3.46355497]
[1766373611999,3.41,125.66,125.6,10.578]
[1766373612500,0.0534233,125.64,125.62,0.05297714]
[1766373622816,3.41,125.68,125.62,3.46297714]
[1766373623713,0.05198136,125.66,125.62,3.46297714]
[1766373632226,0.05198136,125.66,125.62,0.05297714]
[1766373638727,3.50198136,125.66,125.62,0.05297714]
[1766373641239,0.05198136,125.66,125.62,3.44297714]
[1766373641829,23.95,125.72,125.65,10.555]
[1766373641830,3.45,125.72,125.65,10.555]
[1766373642133,3.45,125.72,125.65,3.39]
[1766373642436,3.45,125.71,125.65,3.39]
[1766373642832,0.05344506,125.69,125.67,0.05934093]
[1766373643034,3.50344506,125.69,125.62,7.1665]
[1766373643225,3.45,125.69,125.62,10.5565]
[1766373644035,0.05160102,125.67,125.64,0.05322753]
[1766373646735,0.05160102,125.67,125.64,3.44322753]
[1766373646939,0.00160102,125.67,125.64,3.44322753]
[1766373647536,3.45,125.71,125.65,3.39]
[1766373648543,0.05679331,125.69,125.67,0.05777469]
[1766373648736,3.45,125.73,125.67,3.44777469]
[1766373649739,0.05534968,125.71,125.67,3.44777469]
[1766373649940,3.50534968,125.71,125.67,0.05777469]
[1766373651137,3.45,125.76,125.68,3.39]
[1766373651534,3.45,125.75,125.68,3.39]
[1766373652144,0.05641137,125.73,125.7,0.05052044]
[1766373656755,10.6088,125.77,125.7,0.05052044]
[1766373656952,3.45,125.77,125.7,0.05052044]
[1766373657456,3.45,125.77,125.71,7.1616]
[1766373657852,3.45,125.77,125.73,0.05423116]
[1766373661249,3.45,125.76,125.69,7.1626]
[1766373662158,3.45,125.75,125.67,10.0]
[1766373662355,0.05742305,125.74,125.71,0.05538424]
[1766373670758,3.49742305,125.74,125.68,7.1634]
[1766373670963,3.44,125.71,125.62,111.4802]
[1766373671462,3.44,125.71,125.65,7.1651]
[1766373671758,3.44,125.71,125.67,0.05920225]
[1766373671961,0.05184155,125.69,125.67,0.05920225]
[1766373673363,0.05184155,125.69,125.63,7.166]
[1766373673364,3.49184155,125.69,125.63,7.166]
[1766373673567,4.9373868,125.68,125.59,48.4973868]
[1766373673866,3.44,125.67,125.61,7.1671]
[1766373674259,0.05963888,125.65,125.63,0.05246215]
[1766373676473,3.49963888,125.65,125.59,47.0]
[1766373677359,3.49963888,125.65,125.61,0.05241727]
[1766373678370,0.05963888,125.65,125.61,0.05241727]
[1766373680573,0.05963888,125.65,125.61,7.21971727]
[1766373681474,3.3,125.69,125.62,7.1668]
[1766373681666,3.3,125.68,125.62,7.1668]
[1766373682671,0.05358846,125.66,125.64,0.05045328]
[1766373692881,3.35358846,125.66,125.64,0.00045328]
[1766373693181,4.85097526,125.66,125.57,121.5223]
[1766373693479,111.4274,125.69,125.56,111.5389]
[1766373693480,5.0173868,125.64,125.56,111.5389]
[1766373693893,3.52,125.64,125.59,7.1685]
[1766373694274,0.05508025,125.63,125.6,0.05923087]
[1766373696879,0.05508025,125.63,125.6,7.22723087]
[1766373709991,4.9573868,125.67,125.61,7.1673]
[1766373710294,3.46,125.66,125.61,7.1673]
[1766373711089,0.05850425,125.65,125.62,0.05500032]
[1766373713398,3.6328,125.7,125.62,0.05500032]
[1766373713588,455.33103935,125.77,125.64,111.4647]
[1766373713589,3.46,125.72,125.64,111.4647]
[1766373713785,3.46,125.72,125.65,1.4973868]
[1766373713993,4.9573868,125.74,125.67,7.1638]
[1766373714587,0.05470658,125.72,125.69,0.0613731]
[1766373715796,0.00470658,125.72,125.69,0.0613731]
[1766373715994,4.9573868,125.79,125.7,111.4132]
[1766373716600,3.46,125.79,125.71,118.5677]
[1766373716796,4.9573868,125.79,125.71,118.5677]
[1766373716995,0.04724657,125.76,125.74,0.05794828]
[1766373717304,3.46,125.79,125.74,0.05794828]
[1766373718995,3.46,125.78,125.74,0.05794828]
[1766373722097,4.9573868,125.81,125.74,0.05794828]
[1766373722290,3.46,125.8,125.74,0.05794828]
[1766373723394,3.46,125.8,125.74,7.21774828]
[1766373723594,3.46,125.8,125.74,0.05794828]
[1766373724398,48.4973868,125.82,125.74,111.43204828]
[1766373724695,47.0,125.82,125.77,0.05476434]
[1766373725101,1.4973868,125.85,125.77,0.05476434]
[1766373725303,1.4973868,125.85,125.8,0.05352972]
[1766373726408,3.5,125.84,125.8,0.05352972]
[1766373727498,3.5,125.82,125.73,1.4973868]
[1766373727699,3.5,125.8,125.71,46.98]
[1766373728212,3.5,125.8,125.74,7.1598]
[1766373728714,0.05352972,125.78,125.76,0.0599974]
[1766373729103,3.55352972,125.78,125.72,7.161]
[1766373730109,3.55352972,125.78,125.74,0.05174542]
[1766373731410,0.05352972,125.78,125.74,7.21154542]
[1766373731810,0.05352972,125.78,125.75,7.1592]
[1766373732009,0.00352972,125.78,125.75,7.1592]
[1766373733422,0.00352972,125.78,125.74,0.05174542]
[1766373733909,0.00352972,125.78,125.75,7.1591]
[1766373734821,3.50352972,125.78,125.74,0.05174542]
[1766373735312,3.50352972,125.78,125.74,0.00174542]
[1766373738818,3.5,125.75,125.66,111.4439]
[1766373739522,3.5,125.75,125.68,7.1633]
[1766373739711,0.05733451,125.73,125.7,0.06106307]
[1766373740619,3.55733451,125.73,125.7,0.06106307]
[1766373744919,0.05733451,125.73,125.7,0.06106307]
[1766373746016,0.05733451,125.73,125.7,7.22316307]
[1766373746224,3.5,125.76,125.7,0.06106307]
[1766373747219,0.05793803,125.74,125.7,0.06106307]
[1766373747412,3.58,125.78,125.72,7.1611]
[1766373748324,3.58,125.78,125.74,0.06032574]
[1766373750522,7.1557,125.82,125.74,7.21992574]
[1766373750822,2.33725611,125.81,125.77,0.00410925]
[1766373751024,2.33725611,125.81,125.7,46.98]
[1766373751227,9.49465611,125.79,125.7,46.98]
[1766373752029,0.05171593,125.76,125.73,0.00290338]
[1766373752414,3.58,125.75,125.73,0.00290338]
[1766373753737,3.58,125.75,125.67,111.4415]
[1766373754519,0.05650347,125.72,125.7,0.05960186]
[1766373754818,135.2296,125.8,125.7,0.05960186]
[1766373754819,3.58,125.78,125.71,111.405]
[1766373755321,3.95,125.81,125.74,7.1597]
[1766373755825,0.05050916,125.79,125.76,0.05831858]
[1766373761529,4.00050916,125.79,125.76,0.05831858]
[1766373761732,4.00050916,125.79,125.73,7.1605]
[1766373761931,3.95,125.79,125.73,7.1605]
[1766373762730,0.05344805,125.77,125.75,0.05318056]
[1766373771234,0.05344805,125.77,125.75,0.00318056]
[1766373771435,4.00344805,125.77,125.71,54.1414]
[1766373772337,4.00344805,125.77,125.73,0.05842714]
[1766373776437,0.05344805,125.77,125.73,7.35902714]
[1766373777635,4.00344805,125.77,125.73,0.05842714]
[1766373783651,11.16194805,125.77,125.7,0.22]
[1766373783852,3.95,125.76,125.7,0.22]
[1766373784545,3.95,125.76,125.7,7.3823]
[1766373784845,0.05337101,125.74,125.72,0.05223913]
[1766373786457,4.48,125.73,125.66,4.42]
[1766373786849,4.48,125.75,125.67,4.42]
[1766373787456,0.05457971,125.72,125.7,0.05142038]
[1766373800265,0.00457971,125.72,125.7,4.47142038]
[1766373800965,4.48,125.77,125.71,4.42]
[1766373801171,5.97778688,125.79,125.71,4.42]
[1766373801761,4.48,125.78,125.71,4.42]
[1766373801961,0.05750586,125.76,125.73,0.05681711]
[1766373802568,0.05750586,125.76,125.73,7.21741711]
[1766373803374,5.97778688,125.8,125.74,11.58]
[1766373803564,4.48,125.8,125.74,11.58]
[1766373803757,4.48,125.8,125.74,4.42]
[1766373803965,4.48,125.8,125.76,7.1588]
[1766373804463,0.05222841,125.79,125.77,0.05735486]
[1766373804967,4.48,125.82,125.77,0.05735486]
[1766373805471,4.48,125.82,125.77,4.47735486]
[1766373805958,0.05517097,125.81,125.77,4.47735486]
[1766373806570,0.05517097,125.81,125.77,11.63555486]
[1766373811571,0.05517097,125.81,125.77,4.47735486]
[1766373811770,4.90517097,125.81,125.77,0.05735486]
[1766373815865,6.40295785,125.81,125.77,0.05735486]
[1766373816076,4.73,125.8,125.75,46.98]
[1766373816369,4.73,125.8,125.73,5.1]
[1766373816577,6.22778688,125.8,125.73,5.1]
[1766373816978,0.05810671,125.78,125.75,0.05749577]
[1766373817880,4.78810671,125.78,125.75,0.05749577]
[1766373818773,4.73,125.85,125.76,5.1]
[1766373818968,4.73,125.84,125.76,5.1]
[1766373819577,4.73,125.84,125.77,12.2581]
[1766373819777,0.06064178,125.82,125.79,0.05591006]
[1766373828399,4.73,125.87,125.79,5.15591006]
[1766373828597,4.73,125.87,125.79,5.1]
[1766373829102,4.73,125.83,125.77,5.1]
[1766373829300,0.04696696,125.81,125.79,0.05368071]
[1766373832407,4.73,125.85,125.79,0.05368071]
[1766373833504,4.73,125.85,125.8,5.1]
[1766373834200,4.73,125.85,125.79,0.05368071]
[1766373834399,4.73,125.85,125.79,5.15368071]
[1766373834598,4.73,125.85,125.8,7.1565]
[1766373835607,4.73,125.85,125.8,12.2565]
[1766373837999,4.73,125.84,125.79,0.05368071]
[1766373840114,4.73,125.84,125.79,7.21078071]
[1766373842016,4.73,125.84,125.79,12.31078071]
[1766373842216,4.73,125.9,125.81,5.1]
[1766373842419,4.73,125.9,125.84,5.15397928]
[1766373842724,7.1468,125.98,125.88,12.252]
[1766373842907,1.49778688,125.97,125.92,0.05614276]
[1766373843110,1.49778688,125.97,125.87,1.49778688]
[1766373843111,1.49778688,125.94,125.86,5.1]
[1766373843311,1.49778688,125.93,125.86,5.1]
[1766373843708,111.1856,125.96,125.86,5.1]
[1766373843922,1.49778688,125.96,125.87,5.1]
[1766373844117,0.05443331,125.93,125.9,0.05317382]
[1766373844820,6.28222019,125.93,125.84,116.3886]
[1766373845122,6.22778688,125.93,125.85,5.1]
[1766373845326,5.19,125.92,125.85,5.1]
[1766373845519,5.19,125.92,125.86,5.03]
[1766373845716,5.19,125.94,125.87,5.03]
[1766373846019,0.05916995,125.92,125.89,0.05444321]
[1766373849020,5.24916995,125.92,125.89,0.00444321]
[1766373849221,5.24916995,125.92,125.83,60.64248688]
[1766373849222,5.19,125.91,125.83,60.64248688]
[1766373849733,111.1979,125.95,125.83,59.1447]
[1766373849734,5.19,125.89,125.83,59.1447]
[1766373849912,6.68778688,125.88,125.81,12.1857]
[1766373850315,0.05710499,125.86,125.83,0.05537884]
[1766373851436,46.94,125.91,125.84,5.03]
[1766373851437,5.19,125.9,125.84,5.03]
[1766373851615,52.13,125.92,125.84,5.03]
[1766373852320,0.0544173,125.89,125.87,0.06026595]
[1766373854725,5.19,125.94,125.87,5.09026595]
[1766373855428,5.19,125.94,125.87,0.06026595]
[1766373855726,0.05063849,125.92,125.87,0.06026595]
[1766373856917,0.05063849,125.92,125.87,12.24276595]
[1766373857117,0.05063849,125.92,125.88,5.03]
[1766373858530,0.05063849,125.92,125.88,12.1818]
[1766373859028,5.19,125.96,125.87,10.06026595]
[1766373859029,5.19,125.96,125.9,7.1508]
[1766373859234,7.52354101,125.98,125.9,12.1808]
[1766373859622,5.19,125.98,125.9,12.1808]
[1766373860023,5.19,125.98,125.93,0.05074926]
[1766373865432,5.19,125.98,125.93,0.00074926]
[1766373865737,5.19,125.96,125.89,5.03]
[1766373866531,5.19,125.96,125.91,0.05587886]
[1766373866532,0.05074926,125.94,125.91,0.05587886]
[1766373867630,5.24074926,125.94,125.88,46.92]
[1766373868441,5.24074926,125.94,125.87,5.03]
[1766373868643,5.24074926,125.94,125.89,0.05411579]
[1766373870329,0.05074926,125.94,125.89,5.08411579]
[1766373870533,0.00074926,125.94,125.91,5.03]
[1766373870841,5.19,125.99,125.91,5.03]
[1766373871139,5.19,125.99,125.92,5.03]
[1766373871339,5.19,126.01,125.92,5.03]
[1766373871536,12.3349,126.01,125.93,7.149]
[1766373871839,0.05542102,125.98,125.96,0.05844686]
[1766373873542,0.05542102,125.98,125.92,5.03]
[1766373873930,5.1,126.03,125.94,5.02]
[1766373874137,5.1,126.03,125.95,7.1479]
[1766373874532,5.1,126.03,125.95,12.1679]
[1766373875046,0.05744081,126.0,125.98,0.06040778]
[1766373876537,5.09,126.06,125.98,5.11040778]
[1766373876740,5.09,126.06,125.98,5.05]
[1766373877549,12.2322,126.06,126.01,0.05148188]
[1766373878147,157.9839,126.08,126.01,0.00148188]
[1766373878148,12.28416389,126.05,126.01,0.00148188]
[1766373880444,0.05146389,126.05,126.01,0.00148188]
[1766373883849,0.00146389,126.05,126.01,5.05148188]
[1766373884048,0.00146389,126.05,126.02,12.1938]
[1766373884254,5.09,126.1,126.03,5.05]
[1766373884556,46.88,126.11,126.03,5.05]
[1766373884747,51.97,126.11,126.04,5.05]
[1766373885149,51.97,126.11,126.06,0.05736811]
[1766373885452,5.09,126.1,126.01,5.05]
[1766373886153,5.09,126.1,126.02,5.05]
[1766373886555,111.041,126.13,126.02,5.05]
[1766373886556,5.09,126.14,126.06,5.05]
[1766373886753,51.97,126.17,126.07,5.05]
[1766373886945,5.09,126.16,126.07,5.05]
[1766373887146,5.09,126.16,126.08,5.05]
[1766373887644,5.09,126.16,126.11,0.05874982]
[1766373888451,110.9861,126.19,126.11,5.10874982]
[1766373888452,5.09,126.19,126.11,5.10874982]
[1766373888642,5.09,126.19,126.14,0.05297043]
[1766373889053,46.88,126.21,126.14,0.05297043]
[1766373889054,7.1332,126.22,126.14,0.05297043]
[1766373889353,7.1332,126.22,126.17,0.05843548]
[1766373889748,0.057398,126.21,126.13,5.05]
[1766373889953,157.8394,126.22,126.13,5.05]
[1766373890550,7.1342,126.2,126.13,5.05]
[1766373890751,0.05375419,126.18,126.15,0.05212186]
[1766373891152,51.95,126.22,126.15,0.05212186]
[1766373891458,5.09,126.21,126.15,0.05212186]
[1766373892250,5.09,126.21,126.1,5.05]
[1766373892251,5.14468129,126.19,126.1,5.05]
[1766373892455,5.09,126.19,126.1,5.05]
[1766373892648,12.2254,126.18,126.1,5.05]
[1766373892856,51.95,126.17,126.08,12.1906]
[1766373893252,0.05538151,126.14,126.11,0.05308047]
[1766373894154,5.14538151,126.14,126.05,5.05]
[1766373894359,5.09,126.14,126.05,5.05]
[1766373894958,5.09,126.12,126.05,5.05]
[1766373895156,0.0569998,126.1,126.07,0.05379902]
[1766373896660,12.2271,126.15,126.07,0.05379902]
[1766373896860,12.2271,126.15,126.06,12.1917]
[1766373897058,5.09,126.14,126.06,5.05]
[1766373897354,5.09,126.14,126.04,7.1429]
[1766373897562,5.09,126.14,126.06,5.05]
[1766373897762,0.05288382,126.11,126.09,0.05293309]
[1766373899261,5.09,126.17,126.09,0.05293309]
[1766373899455,5.09,126.17,126.08,5.05]
[1766373900064,5.09,126.16,126.08,5.05]
[1766373900251,5.09,126.16,126.11,0.05192872]
[1766373900450,5.09,126.16,126.11,0.00192872]
[1766373900656,5.09,126.17,126.11,0.00192872]
[1766373901456,0.05,126.15,126.11,0.00192872]
[1766373903166,0.05,126.15,126.12,7.1383]
[1766373904164,5.09,126.2,126.13,7.1377]
[1766373904356,5.09,126.2,126.13,5.05]
[1766373904572,5.09,126.22,126.13,5.05]
[1766373904865,5.09,126.22,126.12,7.1381]
[1766373905366,5.05,126.21,126.16,0.06070176]
[1766373905867,12.1836,126.21,126.16,0.06070176]
[1766373906162,5.05,126.2,126.09,5.03]
[1766373906367,12.1859,126.17,126.09,5.03]
[1766373906570,5.05,126.16,126.09,5.03]
[1766373907169,0.05244924,126.14,126.11,0.05303639]
[1766373907555,0.05244924,126.14,126.11,0.00303639]
[1766373907963,5.10244924,126.14,126.06,5.03]
[1766373908162,5.05,126.14,126.06,5.03]
[1766373908972,0.05146611,126.11,126.09,0.05634641]
[1766373909172,0.05146611,126.11,126.06,5.03]
[1766373909665,0.05146611,126.11,126.03,12.1733]
[1766373909973,5.05,126.12,126.03,12.1733]
[1766373910167,12.1905,126.09,126.0,5.03]
[1766373910563,0.0546934,126.06,126.03,0.00104269]
[1766373910771,5.1046934,126.06,125.97,51.87]
[1766373910962,5.05,126.06,125.97,51.87]
[1766373911165,5.05,126.06,125.97,5.03]
[1766373911563,5.05,126.06,125.97,12.1768]
[1766373911785,0.0001049,126.03,126.0,5.08500673]
[1766373912070,23.9,126.13,126.0,5.08500673]
[1766373912071,5.05,126.12,126.01,5.03]
[1766373912276,51.89,126.11,126.01,5.03]
[1766373912778,0.05970317,126.07,126.05,0.05978258]
[1766373916070,0.05970317,126.07,126.0,5.03]
[1766373916486,12.1887,126.12,126.02,5.03]
[1766373916775,5.05,126.14,126.05,5.03]
[1766373916977,5.05,126.14,126.06,5.03]
[1766373917174,46.84,126.15,126.08,5.03]
[1766373917581,0.05927229,126.13,126.1,0.05421666]
[1766373919579,0.05927229,126.13,126.07,7.1413]
[1766373919786,0.05927229,126.13,126.05,123.2751]
[1766373919985,5.05,126.15,126.05,116.133]
[1766373920788,0.05224888,126.11,126.09,0.05943684]
[1766373920983,0.05224888,126.11,126.05,5.03]
[1766373921284,5.10224888,126.11,126.02,5.03]
[1766373921484,5.05,126.11,126.02,5.03]
[1766373921685,5.05,126.11,126.04,7.1429]
[1766373921985,0.05404369,126.09,126.06,0.05022051]
[1766373923880,5.05,126.08,125.99,5.03]
[1766373924079,5.05,126.07,125.99,5.03]
[1766373924881,0.05757964,126.04,126.02,0.05318606]
[1766373925189,0.05757964,126.04,125.98,7.1461]
[1766373925491,12.1921,126.06,125.98,7.1461]
[1766373926081,0.06084515,126.03,126.01,0.0558469]
[1766373926276,0.06084515,126.03,125.98,7.1461]
[1766373926487,0.06084515,126.03,125.51,64.36022024]
[1766373926488,5.11084515,126.03,125.93,5.03]
[1766373926679,5.05,126.03,125.93,5.03]
[1766373927087,5.05,126.03,125.96,5.03]
[1766373927383,0.050338,126.01,125.98,0.05626562]
[1766373927782,465.82457183,126.13,125.98,0.05626562]
[1766373927783,51.91,126.06,125.98,0.05626562]
[1766373927988,51.91,126.06,125.97,5.03]
[1766373928184,51.91,126.06,125.98,7.1463]
[1766373928390,5.05,126.06,125.98,5.03]
[1766373929089,0.05713088,126.03,126.01,0.05244982]
[1766373933891,0.05713088,126.03,125.97,7.1467]
[1766373935198,0.05713088,126.03,125.99,0.05157803]
[1766373937312,5.13713088,126.03,125.99,0.05157803]
[1766373938294,0.05713088,126.03,125.99,0.05157803]
[1766373940909,23.83,126.11,126.02,5.27]
[1766373940910,5.08,126.11,126.02,5.27]
[1766373941096,5.08,126.11,126.03,5.27]
[1766373941295,46.88,126.13,126.03,5.27]
[1766373941296,51.96,126.13,126.03,5.27]
[1766373941703,5.08,126.12,126.03,5.27]
[1766373942003,0.05154951,126.09,126.06,0.06074441]
[1766373944305,5.13154951,126.09,126.06,0.00074441]
[1766373944505,5.13154951,126.09,126.02,7.144]
[1766373945408,5.13154951,126.09,126.03,7.1434]
[1766373945702,0.05069901,126.07,126.05,0.05512487]
[1766373948507,0.00069901,126.07,126.05,0.05512487]
[1766373948713,59.0783,126.13,126.05,0.05512487]
[1766373948913,59.0783,126.13,126.04,5.27]
[1766373949597,0.05377588,126.1,126.07,0.05961786]
[1766373955108,5.13377588,126.1,126.04,12.4127]
[1766373955717,5.13377588,126.1,126.02,12.4138]
[1766373955919,5.08,126.1,126.02,12.4138]
[1766373956213,0.05506496,126.07,126.05,0.06105638]
[1766373957003,5.08,126.13,126.05,0.06105638]
[1766373957207,51.94,126.12,126.04,5.27]
[1766373958015,0.05147141,126.09,126.07,0.05365284]
[1766373962017,0.05147141,126.09,126.02,22.4138]
[1766373962223,0.05147141,126.09,126.02,12.4138]
[1766373962421,5.13147141,126.09,126.02,12.4138]
[1766373962617,5.13147141,126.09,126.02,5.27]
[1766373963123,5.08,126.07,126.04,0.0010522]
[1766373963323,5.08,126.07,125.99,5.27]
[1766373964326,0.0531109,126.04,126.02,0.05006419]
[1766373965630,0.0531109,126.04,125.99,5.27]
[1766373965925,0.0531109,126.04,125.99,12.4157]
[1766373966630,0.0531109,126.04,126.0,0.05375111]
[1766373967029,5.11,126.09,126.01,5.0]
[1766373967928,5.11,126.09,126.01,12.1445]
[1766373968230,0.05884981,126.06,126.04,0.05302487]
[1766373971132,0.05884981,126.06,126.04,0.00302487]
[1766373972534,5.11,126.1,126.04,0.00302487]
[1766373972734,51.97,126.1,126.04,0.00302487]
[1766373973627,0.05295335,126.08,126.04,0.00302487]
[1766373975634,5.16295335,126.08,126.04,0.00302487]
[1766373977138,5.11,126.07,126.04,0.00302487]
[1766373980135,5.11,126.07,126.0,5.0]
[1766373981137,0.05992503,126.05,126.02,0.05863376]
[1766373984045,51.97,126.09,126.02,5.05863376]
[1766373984241,51.97,126.09,126.02,5.0]
[1766373984735,5.11,126.08,126.02,5.0]
[1766373985137,0.06055758,126.06,126.04,0.06065643]
[1766373987047,5.11,126.1,126.04,12.20365643]
[1766373987942,0.05593303,126.08,126.04,12.20365643]
[1766373993240,0.05593303,126.08,126.04,0.06065643]
[1766373996443,5.27593303,126.08,126.04,0.06065643]
[1766373996647,5.27593303,126.08,126.04,0.00065643]
[1766373998342,157.9074,126.12,126.04,5.08065643]
[1766373998343,54.40781648,126.12,126.04,5.08065643]
[1766373998544,5.22,126.11,126.04,5.08]
[1766373999554,0.05257993,126.09,126.06,0.05173922]
[1766374001756,5.27257993,126.09,126.06,0.00173922]
[1766374005365,5.27257993,126.09,126.02,12.2238]
[1766374006354,5.27257993,126.09,126.04,0.06065069]
[1766374006560,5.22,126.08,126.04,0.06065069]
[1766374009766,5.22,126.08,125.99,168.0145]
[1766374009767,5.22,126.06,125.99,5.08]
[1766374010065,5.22,126.06,126.0,5.08]
[1766374010267,52.08,126.08,126.0,5.08]
[1766374010465,5.22,126.07,126.0,5.08]
[1766374010665,0.05409242,126.05,126.02,0.05948504]
[1766374016069,0.05409242,126.05,126.02,5.13948504]
[1766374016272,52.08,126.08,126.02,5.13948504]
[1766374016462,5.22,126.1,126.02,5.13948504]
[1766374016666,5.22,126.1,126.02,5.08]
[1766374017260,0.05889302,126.07,126.05,0.05781845]
[1766374018372,46.86,126.11,126.05,5.13781845]
[1766374019482,52.08,126.11,126.05,5.13781845]
[1766374019786,0.06088433,126.09,126.05,5.13781845]
[1766374020976,5.22,126.14,126.06,5.08]
[1766374021979,0.05346073,126.11,126.09,0.05242336]
[1766374031592,0.05346073,126.11,126.09,0.00242336]
[1766374033789,4.97346073,126.11,126.04,10.0]